bitfinex/quotes_SOLUSD_20250602
["timestamp","ask_amount","ask_price","bid_price","bid_amount"]
[1748851930620,10.36,155.57,155.55,18.19632662]
[1748851931118,10.36,155.57,155.56,18.19632662]
[1748851931450,10.36,155.57,155.55,27.25952949]
[1748851931828,10.36,155.57,155.56,6.42838776]
[1748851933448,37.61952949,155.57,155.53,27.25952949]
[1748851933920,37.61952949,155.57,155.54,6.42921435]
[1748851935542,27.25952949,155.56,155.52,6.4296823]
[1748851937056,27.25952949,155.56,155.52,33.68921179]
[1748851938859,37.61952949,155.57,155.52,33.68921179]
[1748851939951,10.36,155.57,155.52,49.76431467]
[1748851940140,37.61952949,155.57,155.52,49.76431467]
[1748851940346,37.61952949,155.57,155.53,27.25952949]
[1748851941349,37.61952949,155.57,155.52,49.76431467]
[1748851941551,37.61952949,155.57,155.53,27.25952949]
[1748851942553,10.36,155.57,155.54,33.68874384]
[1748851942761,10.36,155.57,155.55,27.25952949]
[1748851942944,10.36,155.57,155.54,22.50225022]
[1748851943149,19.51596913,155.59,155.54,22.50225022]
[1748851943150,19.51596913,155.59,155.56,27.25952949]
[1748851943743,27.25952949,155.58,155.54,49.76177971]
[1748851945262,27.25952949,155.58,155.54,6.42921435]
[1748851945645,27.25952949,155.56,155.54,6.42921435]
[1748851946461,37.61952949,155.55,155.53,6.42949197]
[1748851946843,10.36,155.55,155.53,6.42949197]
[1748851947348,10.36,155.55,155.53,33.68902146]
[1748851949565,10.36,155.55,155.53,6.42949197]
[1748851950874,37.61952949,155.55,155.53,6.42949197]
[1748851951053,27.25952949,155.54,155.51,6.43045463]
[1748851951664,27.25952949,155.53,155.49,6.43128175]
[1748851951965,27.25952949,155.52,155.49,6.43128175]
[1748851952845,27.25952949,155.51,155.48,6.4315413]
[1748851953044,10.36,155.5,155.48,6.4315413]
[1748851953463,10.36,155.5,155.47,6.43210908]
[1748851953642,18.19548012,155.49,155.47,6.43210908]
[1748851953841,28.55548012,155.5,155.47,6.43210908]
[1748851955347,10.36,155.5,155.47,24.6275892]
[1748851955757,10.36,155.5,155.47,40.70786192]
[1748851955961,10.36,155.5,155.48,18.19548012]
[1748851956147,10.36,155.5,155.49,18.19548012]
[1748851956566,10.36,155.5,155.47,22.5123818]
[1748851956749,10.36,155.5,155.48,18.19548012]
[1748851957161,10.36,155.5,155.47,22.5123818]
[1748851957376,10.36,155.5,155.48,18.19548012]
[1748851957562,10.36,155.5,155.49,6.43128175]
[1748851958073,28.55548012,155.53,155.49,6.43128175]
[1748851958261,18.19548012,155.51,155.49,6.43128175]
[1748851958581,18.19548012,155.52,155.49,6.43128175]
[1748851960477,18.19548012,155.51,155.48,6.43167029]
[1748851960773,18.19548012,155.49,155.48,6.43167029]
[1748851961473,18.19548012,155.5,155.48,6.43167029]
[1748851962384,18.19548012,155.5,155.47,6.43210908]
[1748851963375,18.19548012,155.51,155.47,6.43210908]
[1748851964468,10.36,155.53,155.5,18.19548012]
[1748851966480,10.36,155.53,155.51,24.62593475]
[1748851966781,148.9,155.56,155.52,18.19548012]
[1748851967084,148.9,155.56,155.53,18.19548012]
[1748851968682,148.9,155.56,155.54,6.42921435]
[1748851971159,148.9,155.56,155.51,6.43045463]
[1748851971160,18.19548012,155.55,155.51,6.43045463]
[1748851971586,18.19548012,155.55,155.51,24.62593475]
[1748851971896,167.09548012,155.56,155.51,24.62593475]
[1748851972401,167.09548012,155.56,155.51,40.70207133]
[1748851973396,72.81105094,155.56,155.53,18.19548012]
[1748851973963,221.71105094,155.56,155.53,18.19548012]
[1748851974387,72.81105094,155.56,155.54,18.19548012]
[1748851975469,72.81105094,155.56,155.55,6.42880102]
[1748851976478,91.00653106,155.56,155.55,6.42880102]
[1748851977390,72.81105094,155.56,155.55,6.42880102]
[1748851977766,72.81105094,155.56,155.53,6.42962772]
[1748851979394,72.81105094,155.56,155.53,40.69917715]
[1748851979587,72.81105094,155.56,155.54,18.19548012]
[1748851979784,72.81105094,155.56,155.55,18.19548012]
[1748851980689,72.81105094,155.56,155.55,69.09622898]
[1748851980875,159.24,155.65,155.58,18.64964886]
[1748851981074,159.24,155.65,155.62,18.19548012]
[1748851981276,10.34,155.65,155.62,18.19548012]
[1748851981483,10.34,155.65,155.64,18.19548012]
[1748851982491,167.09548012,155.69,155.64,18.19548012]
[1748851982492,159.24,155.69,155.64,18.19548012]
[1748851982697,10.34,155.69,155.65,18.19548012]
[1748851982998,10.34,155.69,155.67,6.42384531]
[1748851983896,10.34,155.69,155.66,6.42415926]
[1748851984100,18.19548012,155.68,155.64,24.62016688]
[1748851984482,10.34,155.69,155.67,18.19548012]
[1748851984902,10.34,155.69,155.65,18.19548012]
[1748851985284,28.53548012,155.69,155.66,6.42425799]
[1748851985691,10.34,155.69,155.66,24.61973811]
[1748851986183,18.19548012,155.67,155.62,6.42590926]
[1748851986379,18.19548012,155.67,155.63,18.19548012]
[1748851986977,18.19548012,155.68,155.63,18.19548012]
[1748851987589,18.19548012,155.68,155.64,6.42508352]
[1748851988841,18.19548012,155.68,155.64,24.62056364]
[1748851989602,28.53548012,155.69,155.65,18.19548012]
[1748851990107,18.19548012,155.68,155.64,18.19548012]
[1748851990726,10.34,155.69,155.64,18.19548012]
[1748851991014,10.34,155.69,155.68,18.19548012]
[1748851991388,28.51548012,155.73,155.68,18.19548012]
[1748851991641,28.51548012,155.73,155.72,18.19548012]
[1748851991642,10.32,155.73,155.72,18.19548012]
[1748851991916,10.32,155.73,155.72,24.6172628]
[1748851992125,110.75548012,155.76,155.72,24.6172628]
[1748851992304,110.75548012,155.76,155.72,6.42178268]
[1748851992504,92.56,155.76,155.72,24.6172628]
[1748851992709,110.75548012,155.76,155.72,24.6172628]
[1748851992916,110.75548012,155.76,155.72,6.42178268]
[1748851993099,121.07548012,155.76,155.72,6.42178268]
[1748851993502,102.88,155.76,155.73,18.19548012]
[1748851993920,102.88,155.76,155.74,6.420958]
[1748851994116,102.88,155.76,155.73,6.42123042]
[1748851994401,18.19548012,155.75,155.72,6.4217386]
[1748851995199,121.07548012,155.76,155.72,6.4217386]
[1748851997934,18.19548012,155.75,155.72,6.4217386]
[1748851998235,18.19548012,155.73,155.68,18.19548012]
[1748851998433,18.19548012,155.72,155.68,18.19548012]
[1748851999132,18.19548012,155.72,155.68,24.6189128]
[1748851999828,18.19548012,155.73,155.69,18.19548012]
[1748852000646,39.62,155.75,155.7,18.19548012]
[1748852000811,18.19548012,155.74,155.7,18.19548012]
[1748852001927,18.19548012,155.74,155.71,6.4221951]
[1748852002457,18.19548012,155.75,155.71,24.61767522]
[1748852003125,18.19548012,155.74,155.71,6.4221951]
[1748852003313,18.19548012,155.75,155.71,24.61767522]
[1748852003518,121.07548012,155.76,155.72,18.19548012]
[1748852003824,121.07548012,155.76,155.73,6.42137032]
[1748852004422,10.32,155.76,155.75,18.19548012]
[1748852004622,148.9,155.79,155.75,18.19548012]
[1748852004834,10.38,155.8,155.76,18.19548012]
[1748852005039,10.38,155.8,155.73,41.12444498]
[1748852005040,10.38,155.8,155.77,18.19548012]
[1748852005839,28.57548012,155.8,155.75,24.61573366]
[1748852007646,18.19548012,155.79,155.75,24.61573366]
[1748852009053,28.57548012,155.8,155.76,18.19548012]
[1748852009630,18.19548012,155.77,155.71,24.55228012]
[1748852009841,18.19548012,155.75,155.71,6.3568]
[1748852010045,18.19548012,155.76,155.72,24.6172628]
[1748852012736,18.19548012,155.77,155.72,24.6172628]
[1748852013050,18.19548012,155.77,155.73,18.19548012]
[1748852014548,18.19548012,155.77,155.74,6.420958]
[1748852018451,18.19548012,155.75,155.72,6.42141098]
[1748852018757,18.19548012,155.74,155.72,6.42141098]
[1748852019055,39.58,155.79,155.72,24.6168911]
[1748852019056,18.19548012,155.77,155.72,24.6168911]
[1748852019568,39.58,155.79,155.73,18.19548012]
[1748852019859,28.57548012,155.8,155.76,18.19548012]
[1748852020467,18.19548012,155.78,155.72,28.87006769]
[1748852020758,18.19548012,155.75,155.72,6.42141098]
[1748852020961,18.19548012,155.74,155.71,6.42203742]
[1748852021164,18.19548012,155.73,155.71,6.42203742]
[1748852021457,18.19548012,155.73,155.7,6.42260757]
[1748852022663,18.19548012,155.72,155.7,6.42260757]
[1748852023054,18.19548012,155.71,155.69,6.42288591]
[1748852023370,18.19548012,155.7,155.66,2.52367498]
[1748852023543,18.19548012,155.67,155.66,2.52367498]
[1748852025771,10.36,155.7,155.66,27.14341309]
[1748852026348,28.55548012,155.7,155.66,25.00857796]
[1748852026551,18.19548012,155.69,155.66,25.00857796]
[1748852026760,28.55548012,155.7,155.66,25.00857796]
[1748852031447,18.19548012,155.69,155.66,8.94793297]
[1748852033064,18.19548012,155.69,155.66,27.14341309]
[1748852033777,28.55548012,155.7,155.66,27.14341309]
[1748852037278,28.55548012,155.7,155.66,43.20405808]
[1748852037470,10.36,155.7,155.66,43.20405808]
[1748852039882,10.36,155.7,155.68,18.19548012]
[1748852040474,10.36,155.7,155.66,43.20405808]
[1748852041784,10.36,155.7,155.68,18.19548012]
[1748852042771,10.36,155.7,155.67,18.19548012]
[1748852043796,10.36,155.7,155.66,25.00857796]
[1748852043797,10.36,155.7,155.69,18.19548012]
[1748852044158,28.55548012,155.74,155.69,18.19548012]
[1748852044794,18.19548012,155.73,155.69,18.19548012]
[1748852044972,18.19548012,155.73,155.68,40.6774945]
[1748852045883,18.19548012,155.73,155.69,18.19548012]
[1748852047883,18.19548012,155.73,155.7,6.42260757]
[1748852052786,10.36,155.74,155.7,6.42260757]
[1748852052787,18.19548012,155.71,155.7,6.42260757]
[1748852053375,18.19548012,155.73,155.7,6.42260757]
[1748852053590,28.55548012,155.74,155.7,6.42260757]
[1748852053770,28.55548012,155.74,155.7,24.61808769]
[1748852054086,10.36,155.74,155.73,18.19548012]
[1748852055175,10.36,155.74,155.73,24.61685044]
[1748852057165,28.47548012,155.78,155.73,40.67027624]
[1748852057387,28.47548012,155.78,155.74,18.19548012]
[1748852059188,18.19548012,155.77,155.75,6.42054574]
[1748852059567,18.19548012,155.76,155.72,18.19548012]
[1748852059976,18.19548012,155.76,155.73,6.42124381]
[1748852061883,18.19548012,155.74,155.7,6.42260757]
[1748852062093,18.19548012,155.73,155.7,6.42260757]
[1748852062993,18.19548012,155.74,155.7,6.42260757]
[1748852064198,18.19548012,155.73,155.7,6.42260757]
[1748852064995,18.19548012,155.73,155.68,24.6189128]
[1748852066005,18.19548012,155.73,155.68,40.6774945]
[1748852066206,18.19548012,155.73,155.69,18.19548012]
[1748852067177,18.19548012,155.73,155.7,6.42260757]
[1748852071706,18.19548012,155.73,155.69,6.4230201]
[1748852073009,10.28,155.74,155.7,18.19548012]
[1748852073181,177.37548012,155.78,155.73,18.19548012]
[1748852073509,177.37548012,155.78,155.74,18.19548012]
[1748852073672,177.37548012,155.78,155.74,6.420958]
[1748852076304,177.37548012,155.78,155.74,18.19548012]
[1748852078187,18.19548012,155.77,155.73,18.19548012]
[1748852078507,18.19548012,155.77,155.72,18.19548012]
[1748852079312,18.19548012,155.74,155.71,6.4221951]
[1748852079610,18.19548012,155.76,155.72,18.19548012]
[1748852080400,18.19548012,155.76,155.73,6.42137032]
[1748852083110,18.19548012,155.77,155.73,6.42137032]
[1748852084189,198.62,155.78,155.74,18.19548012]
[1748852085208,198.62,155.78,155.75,6.42054574]
[1748852085518,49.72,155.78,155.75,6.42054574]
[1748852085941,148.9,155.81,155.77,18.19548012]
[1748852086221,148.9,155.81,155.78,18.19548012]
[1748852087300,148.9,155.81,155.79,6.41889723]
[1748852087502,92.46,155.82,155.79,6.41889723]
[1748852087908,110.65548012,155.82,155.79,6.41889723]
[1748852089212,18.19548012,155.81,155.79,6.41889723]
[1748852090104,18.19548012,155.81,155.77,6.41963233]
[1748852090313,18.19548012,155.79,155.75,6.42054574]
[1748852091422,18.19548012,155.79,155.75,24.61602586]
[1748852094421,18.19548012,155.8,155.76,18.19548012]
[1748852094603,57.63548012,155.8,155.76,18.19548012]
[1748852094919,18.19548012,155.79,155.75,6.42054574]
[1748852095413,18.19548012,155.78,155.75,6.42054574]
[1748852096931,28.45548012,155.78,155.74,6.42083021]
[1748852097228,18.19548012,155.76,155.71,18.19548012]
[1748852097915,18.19548012,155.76,155.71,24.61767522]
[1748852099122,18.19548012,155.76,155.71,40.67316298]
[1748852099329,18.19548012,155.77,155.72,18.19548012]
[1748852100329,18.19548012,155.76,155.72,18.19548012]
[1748852100798,18.19548012,155.76,155.73,6.42137032]
[1748852102417,18.19548012,155.76,155.71,22.47768286]
[1748852102622,18.19548012,155.75,155.71,6.4221951]
[1748852102925,18.19548012,155.75,155.71,24.61767522]
[1748852105012,18.19548012,155.73,155.7,6.42260757]
[1748852106304,39.44,155.76,155.7,24.61808769]
[1748852106503,18.19548012,155.75,155.71,18.19548012]
[1748852106813,57.63548012,155.76,155.71,18.19548012]
[1748852107014,18.19548012,155.75,155.71,18.19548012]
[1748852108216,18.19548012,155.75,155.72,6.42178268]
[1748852109313,18.19548012,155.74,155.72,6.42178268]
[1748852109503,18.19548012,155.73,155.69,24.61850022]
[1748852110120,18.19548012,155.74,155.7,18.19548012]
[1748852111127,39.44,155.76,155.72,18.19548012]
[1748852111337,167.09548012,155.77,155.73,18.19548012]
[1748852111533,18.19548012,155.77,155.73,18.19548012]
[1748852111921,18.19548012,155.77,155.72,18.19548012]
[1748852112622,17.69548012,155.77,155.72,18.19548012]
[1748852113134,18.19548012,155.76,155.73,6.42137032]
[1748852114816,18.19548012,155.77,155.73,6.42137032]
[1748852117144,18.19548012,155.75,155.73,6.42137032]
[1748852117719,18.19548012,155.76,155.73,6.42137032]
[1748852118135,10.26,155.78,155.73,6.42137032]
[1748852118136,10.26,155.78,155.75,18.19548012]
[1748852118336,148.9,155.8,155.77,18.19548012]
[1748852118635,10.26,155.82,155.74,26.0]
[1748852118636,28.45548012,155.82,155.74,26.0]
[1748852118840,28.45548012,155.82,155.78,18.19548012]
[1748852119044,10.26,155.82,155.79,6.41889723]
[1748852119915,28.45548012,155.82,155.79,6.41889723]
[1748852120338,18.19548012,155.81,155.78,6.41915853]
[1748852120635,18.19548012,155.79,155.75,6.42054574]
[1748852120840,18.19548012,155.78,155.75,6.42054574]
[1748852121621,18.19548012,155.79,155.75,18.19548012]
[1748852123547,18.19548012,155.8,155.76,18.19548012]
[1748852124134,18.19548012,155.8,155.77,6.41972138]
[1748852124327,18.19548012,155.79,155.77,6.41972138]
[1748852124525,18.19548012,155.8,155.77,6.41972138]
[1748852124731,18.19548012,155.81,155.77,24.6152015]
[1748852125739,28.45548012,155.82,155.77,40.66450496]
[1748852126240,18.19548012,155.81,155.77,18.19548012]
[1748852126449,18.19548012,155.8,155.74,41.12300187]
[1748852126651,18.19548012,155.79,155.75,18.19548012]
[1748852126948,18.19548012,155.81,155.77,18.19548012]
[1748852127249,28.45548012,155.82,155.77,18.19548012]
[1748852127749,18.19548012,155.81,155.77,18.19548012]
[1748852127946,28.45548012,155.82,155.77,18.19548012]
[1748852128348,28.45548012,155.82,155.78,6.41930928]
[1748852128946,18.19548012,155.79,155.75,18.19548012]
[1748852129138,18.19548012,155.8,155.76,18.19548012]
[1748852130343,18.19548012,155.8,155.75,6.42054574]
[1748852130545,18.19548012,155.79,155.75,24.61602586]
[1748852131745,18.19548012,155.79,155.75,6.42054574]
[1748852132332,18.19548012,155.76,155.73,6.42098709]
[1748852132555,18.19548012,155.77,155.73,6.42098709]
[1748852132863,18.19548012,155.79,155.75,18.19548012]
[1748852133233,18.19548012,155.78,155.74,18.19548012]
[1748852133435,18.19548012,155.77,155.73,40.66989301]
[1748852133956,18.19548012,155.77,155.73,22.47441289]
[1748852134756,18.19548012,155.76,155.73,6.42098709]
[1748852134962,18.19548012,155.75,155.73,6.42098709]
[1748852135263,18.19548012,155.74,155.7,6.42260757]
[1748852135553,18.19548012,155.76,155.72,18.19548012]
[1748852135934,18.19548012,155.76,155.7,22.47912651]
[1748852135935,18.19548012,155.76,155.71,18.19548012]
[1748852136140,18.19548012,155.75,155.71,18.19548012]
[1748852137059,18.19548012,155.75,155.7,22.47912651]
[1748852137060,18.19548012,155.75,155.7,40.67460663]
[1748852137544,18.19548012,155.75,155.71,18.19548012]
[1748852137746,18.19548012,155.76,155.72,18.19548012]
[1748852138350,148.9,155.77,155.72,18.19548012]
[1748852138668,148.9,155.77,155.74,18.19548012]
[1748852138840,10.26,155.78,155.75,18.19548012]
[1748852139035,10.26,155.78,155.76,6.42013353]
[1748852141035,18.19548012,155.77,155.72,18.19548012]
[1748852141243,18.19548012,155.77,155.72,40.67171951]
[1748852142775,18.19548012,155.76,155.72,40.67171951]
[1748852143069,18.19548012,155.77,155.72,40.67171951]
[1748852143477,18.19548012,155.75,155.72,6.42178268]
[1748852144847,18.19548012,155.74,155.72,6.42178268]
[1748852145045,18.19548012,155.73,155.7,6.42260757]
[1748852145244,18.19548012,155.73,155.69,6.4230201]
[1748852146146,28.45548012,155.73,155.69,6.4230201]
[1748852147063,28.45548012,155.73,155.69,24.61850022]
[1748852147064,10.26,155.73,155.69,24.61850022]
[1748852147269,10.26,155.73,155.71,18.19548012]
[1748852147480,177.35548012,155.77,155.72,18.19548012]
[1748852148549,177.35548012,155.77,155.73,6.42137032]
[1748852152177,18.19548012,155.76,155.73,6.42137032]
[1748852152675,10.26,155.77,155.75,18.19548012]
[1748852152975,18.19548012,155.8,155.75,18.19548012]
[1748852153160,28.45548012,155.79,155.74,18.19548012]
[1748852153355,18.19548012,155.79,155.74,18.19548012]
[1748852153673,28.45548012,155.79,155.74,18.19548012]
[1748852154048,18.19548012,155.78,155.74,18.19548012]
[1748852154566,28.45548012,155.78,155.74,18.19548012]
[1748852154873,28.45548012,155.78,155.75,6.42054574]
[1748852155873,28.45548012,155.78,155.73,16.0534258]
[1748852156169,28.45548012,155.78,155.73,34.24890592]
[1748852156847,28.45548012,155.78,155.73,18.19548012]
[1748852157052,18.19548012,155.77,155.72,18.19548012]
[1748852157269,18.19548012,155.76,155.71,24.61767522]
[1748852157974,18.19548012,155.76,155.73,6.42137032]
[1748852158185,10.26,155.78,155.74,18.19548012]
[1748852159172,28.45548012,155.78,155.74,18.19548012]
[1748852159385,28.45548012,155.78,155.73,40.67027624]
[1748852161593,18.19548012,155.77,155.73,16.0534258]
[1748852162356,18.19548012,155.77,155.73,34.24890592]
[1748852162559,28.45548012,155.78,155.73,34.24890592]
[1748852162864,28.45548012,155.78,155.74,18.19548012]
[1748852163061,10.26,155.78,155.75,18.19548012]
[1748852163266,10.26,155.78,155.76,18.19548012]
[1748852163555,10.26,155.78,155.77,24.6152015]
[1748852163954,10.26,155.82,155.77,40.66450496]
[1748852164174,10.26,155.82,155.78,18.19548012]
[1748852165183,28.45548012,155.82,155.78,18.19548012]
[1748852165567,28.45548012,155.82,155.79,6.41889723]
[1748852165963,10.26,155.82,155.79,6.41889723]
[1748852166210,10.26,155.82,155.81,18.19548012]
[1748852166376,10.26,155.82,155.8,18.19548012]
[1748852167890,10.26,155.82,155.81,6.41807329]
[1748852168068,10.26,155.82,155.81,24.61355341]
[1748852168264,10.26,155.82,155.81,6.41807329]
[1748852169988,10.26,155.82,155.77,6.41972138]
[1748852170195,10.26,155.82,155.79,18.19548012]
[1748852171084,10.26,155.82,155.8,6.41848523]
[1748852172298,28.45548012,155.82,155.79,6.41873922]
[1748852173181,10.26,155.82,155.79,6.41873922]
[1748852173997,10.26,155.82,155.79,24.61421934]
[1748852175008,10.26,155.82,155.8,18.19548012]
[1748852175196,10.26,155.82,155.81,6.41807329]
[1748852177597,10.26,155.82,155.8,6.41848523]
[1748852179401,10.26,155.82,155.8,24.61396535]
[1748852180103,10.26,155.82,155.8,6.41848523]
[1748852180904,28.45548012,155.82,155.8,6.41848523]
[1748852181407,10.26,155.82,155.79,24.61437735]
[1748852182305,10.26,155.82,155.8,18.19548012]
[1748852182505,10.26,155.82,155.81,18.19548012]
[1748852183785,148.9,155.86,155.82,6.4176614]
[1748852183985,10.24,155.86,155.84,18.19548012]
[1748852184891,10.24,155.86,155.82,6.4176614]
[1748852184892,10.24,155.86,155.82,24.61314152]
[1748852185129,28.43548012,155.86,155.82,6.4176614]
[1748852185794,28.43548012,155.86,155.82,24.61314152]
[1748852185988,18.19548012,155.85,155.82,6.4176614]
[1748852186203,18.19548012,155.85,155.81,18.19548012]
[1748852186403,18.19548012,155.84,155.81,6.41792365]
[1748852188415,28.43548012,155.84,155.81,6.41792365]
[1748852190000,10.24,155.84,155.81,6.41792365]
[1748852190207,28.43548012,155.84,155.81,6.41792365]
[1748852191895,18.19548012,155.83,155.79,18.19548012]
[1748852193617,10.24,155.84,155.8,6.41848523]
[1748852193901,18.19548012,155.83,155.8,6.41848523]
[1748852194100,28.43548012,155.84,155.8,24.61396535]
[1748852195316,10.24,155.84,155.8,24.61396535]
[1748852195517,10.24,155.84,155.83,18.19548012]
[1748852196613,10.24,155.84,155.83,24.61272968]
[1748852197126,10.24,155.84,155.83,6.41724956]
[1748852198422,10.24,155.84,155.82,6.4176614]
[1748852203127,10.24,155.84,155.82,24.61314152]
[1748852205422,10.24,155.84,155.83,18.19548012]
[1748852205804,10.24,155.84,155.83,24.61272968]
[1748852206413,10.24,155.84,155.83,6.41724956]
[1748852206708,10.24,155.84,155.83,24.61272968]
[1748852209806,10.24,155.84,155.83,6.41724956]
[1748852210627,28.43548012,155.84,155.82,6.4174955]
[1748852210833,10.24,155.84,155.82,6.4174955]
[1748852212030,10.24,155.84,155.82,24.61297562]
[1748852213233,10.24,155.84,155.82,6.4174955]
[1748852215121,10.24,155.84,155.82,24.61297562]
[1748852215928,10.24,155.84,155.82,6.4174955]
[1748852217330,28.43548012,155.86,155.82,6.4174955]
[1748852218915,18.19548012,155.85,155.82,6.4174955]
[1748852220340,18.19548012,155.85,155.81,6.41807329]
[1748852220640,18.19548012,155.85,155.81,24.61355341]
[1748852223936,10.24,155.86,155.81,24.61355341]
[1748852223937,18.19548012,155.84,155.81,6.41807329]
[1748852224835,18.19548012,155.82,155.77,6.41972138]
[1748852225138,18.19548012,155.82,155.71,6.4221951]
[1748852225139,18.19548012,155.78,155.71,6.4221951]
[1748852225345,10.24,155.81,155.71,6.4221951]
[1748852225346,26.0,155.79,155.71,6.4221951]
[1748852225640,18.19548012,155.75,155.71,6.4221951]
[1748852225842,28.43548012,155.75,155.71,6.4221951]
[1748852226534,18.19548012,155.74,155.71,6.4221951]
[1748852228413,18.19548012,155.73,155.71,6.4221951]
[1748852229324,18.19548012,155.73,155.7,6.42260757]
[1748852230113,18.19548012,155.73,155.68,18.19548012]
[1748852230114,18.19548012,155.71,155.67,6.42384531]
[1748852230334,18.19548012,155.69,155.67,6.42384531]
[1748852230728,18.19548012,155.69,155.66,8.94780452]
[1748852231162,18.19548012,155.68,155.66,2.52367498]
[1748852231663,18.19548012,155.67,155.66,2.52367498]
[1748852232143,16.66266189,155.7,155.66,2.52367498]
[1748852232330,18.19548012,155.67,155.66,2.52367498]
[1748852234147,10.24,155.7,155.66,8.94787905]
[1748852234148,28.43548012,155.7,155.66,8.94787905]
[1748852234338,18.19548012,155.69,155.66,8.94787905]
[1748852235158,18.19548012,155.68,155.66,8.94787905]
[1748852235648,18.19548012,155.69,155.66,8.94787905]
[1748852236122,18.19548012,155.68,155.66,8.94787905]
[1748852238950,18.19548012,155.67,155.66,8.94787905]
[1748852239826,18.19548012,155.67,155.66,2.52367498]
[1748852243926,24.61932543,155.67,155.66,2.52367498]
[1748852244757,50.61932543,155.67,155.66,2.52367498]
[1748852245251,69.26897429,155.67,155.66,2.52367498]
[1748852250539,50.61932543,155.67,155.66,2.52367498]
[1748852252337,37.67005228,155.69,155.66,2.52367498]
[1748852252667,37.67005228,155.69,155.66,27.14335438]
[1748852252668,11.67005228,155.69,155.66,27.14335438]
[1748852252880,11.67005228,155.69,155.67,18.19548012]
[1748852253040,11.67005228,155.69,155.68,18.19548012]
[1748852253377,10.26,155.7,155.68,18.19548012]
[1748852253669,10.26,155.7,155.67,18.19548012]
[1748852253865,10.26,155.7,155.66,43.20399937]
[1748852257262,28.45548012,155.7,155.66,25.00851925]
[1748852257465,28.45548012,155.7,155.66,43.20399937]
[1748852257774,18.19548012,155.67,155.66,2.52367498]
[1748852258689,18.19548012,155.68,155.66,2.52367498]
[1748852259180,18.19548012,155.68,155.66,8.94793297]
[1748852260462,18.19548012,155.67,155.66,8.94793297]
[1748852260872,28.43548012,155.67,155.66,8.94793297]
[1748852262489,10.24,155.69,155.66,8.94793297]
[1748852263069,10.24,155.69,155.66,43.20405808]
[1748852263267,10.24,155.69,155.66,25.00857796]
[1748852263996,28.43548012,155.69,155.66,25.00857796]
[1748852264675,18.19548012,155.68,155.66,8.94793297]
[1748852264865,18.19548012,155.67,155.66,2.52367498]
[1748852269760,69.26897429,155.67,155.57,6.42797454]
[1748852269989,18.19548012,155.6,155.57,6.42797454]
[1748852270885,18.19548012,155.58,155.57,6.42797454]
[1748852271489,18.19548012,155.58,155.56,6.42838776]
[1748852271689,18.19548012,155.57,155.56,6.42838776]
[1748852272478,18.19548012,155.57,155.54,6.42894599]
[1748852272802,18.19548012,155.55,155.52,6.43004115]
[1748852272973,18.19548012,155.54,155.52,6.43004115]
[1748852273173,18.19548012,155.55,155.52,6.43004115]
[1748852273678,28.43548012,155.56,155.52,40.70062415]
[1748852273873,10.24,155.56,155.52,40.70062415]
[1748852274992,28.43548012,155.56,155.52,40.70062415]
[1748852275302,28.43548012,155.56,155.52,22.50514403]
[1748852276594,18.19548012,155.55,155.52,22.50514403]
[1748852276789,18.19548012,155.55,155.52,16.07510288]
[1748852277867,10.24,155.56,155.52,16.07510288]
[1748852278088,28.43548012,155.56,155.52,16.07510288]
[1748852279295,28.43548012,155.56,155.52,22.50514403]
[1748852280379,18.19548012,155.54,155.52,6.43004115]
[1748852280694,10.24,155.56,155.52,6.43004115]
[1748852280695,18.19548012,155.53,155.52,6.43004115]
[1748852281380,18.19548012,155.54,155.52,6.43004115]
[1748852282189,18.19548012,155.54,155.5,6.43086816]
[1748852282886,18.19548012,155.55,155.5,40.70351869]
[1748852283094,18.19548012,155.55,155.51,18.19548012]
[1748852283483,18.19548012,155.55,155.5,40.70351869]
[1748852283700,18.19548012,155.55,155.5,22.50803857]
[1748852283896,18.19548012,155.55,155.5,40.70351869]
[1748852284301,10.24,155.56,155.52,18.19548012]
[1748852284493,10.26,155.61,155.55,18.19548012]
[1748852284698,10.26,155.61,155.58,18.19548012]
[1748852286005,10.26,155.61,155.59,6.42714827]
[1748852286388,10.26,155.61,155.6,18.19548012]
[1748852286592,10.26,155.61,155.59,6.42714827]
[1748852286788,10.26,155.61,155.6,18.19548012]
[1748852287194,10.26,155.61,155.59,24.62262839]
[1748852287389,10.26,155.61,155.59,6.42714827]
[1748852292415,28.45548012,155.61,155.59,6.42714827]
[1748852292588,18.19548012,155.6,155.59,6.42714827]
[1748852293488,18.19548012,155.6,155.57,22.4973059]
[1748852293689,28.45548012,155.61,155.57,22.4973059]
[1748852293884,18.19548012,155.6,155.57,6.42797454]
[1748852294101,18.19548012,155.58,155.55,6.42880102]
[1748852294410,18.19548012,155.58,155.55,22.50080359]
[1748852294621,18.19548012,155.6,155.55,40.69628371]